[Event "Titled Tuesday Blitz March 29 Late 2022"]
[White "Jaferian, Koosha"]
[Black "Meduri, Aakaash"]
[WhiteFideId "12507440"]
[BlackFideId "2032252"]
[WhiteElo "2030"]
[BlackElo "2096"]
[Result "1/2-1/2"]
[Round "03"]
[TimeControl "180+1"]
[Date "2022.03.30"]
[WhiteClock "0:00:08"]
[BlackClock "0:00:05"]

1. Nf3 {[%clk 0:03:00]}  g6 {[%clk 0:02:59]} 2. b3 {[%clk 0:03:01]}  Bg7 {[%clk 0:03:00]} 3. d4 {[%clk 0:03:02]}  d6 {[%clk 0:03:00]} 4. Bb2 {[%clk 0:03:02]}  Nf6 {[%clk 0:03:00]} 5. g3 {[%clk 0:03:03]}  O-O {[%clk 0:03:00]} 6. Bg2 {[%clk 0:03:03]}  c6 {[%clk 0:03:00]} 7. O-O {[%clk 0:03:04]}  Bf5 {[%clk 0:03:00]} 8. c4 {[%clk 0:03:04]}  Qc8 {[%clk 0:03:01]} 9. Nc3 {[%clk 0:03:04]}  Bh3 {[%clk 0:03:00]} 10. e3 {[%clk 0:03:04]}  a5 {[%clk 0:03:00]} 11. Qd2 {[%clk 0:03:03]}  Bxg2 {[%clk 0:03:00]} 12. Kxg2 {[%clk 0:03:03]}  Nbd7 {[%clk 0:02:58]} 13. Rfd1 {[%clk 0:03:02]}  Qc7 {[%clk 0:02:53]} 14. d5 {[%clk 0:02:55]}  Nc5 {[%clk 0:02:50]} 15. Rac1 {[%clk 0:02:50]}  Nce4 {[%clk 0:02:39]} 16. Nxe4 {[%clk 0:02:50]}  Nxe4 {[%clk 0:02:40]} 17. Qc2 {[%clk 0:02:49]}  Nf6 {[%clk 0:02:38]} 18. e4 {[%clk 0:02:46]}  Nd7 {[%clk 0:02:33]} 19. Bxg7 {[%clk 0:02:45]}  Kxg7 {[%clk 0:02:34]} 20. Qc3+ {[%clk 0:02:46]}  Kg8 {[%clk 0:02:35]} 21. h4 {[%clk 0:02:44]}  a4 {[%clk 0:02:17]} 22. h5 {[%clk 0:02:37]}  Nf6 {[%clk 0:02:08]} 23. h6 {[%clk 0:02:36]}  axb3 {[%clk 0:02:02]} 24. axb3 {[%clk 0:02:35]}  Ra2 {[%clk 0:01:57]} 25. g4 {[%clk 0:02:01]}  Rfa8 {[%clk 0:01:51]} 26. Rd2 {[%clk 0:01:49]}  Qd7 {[%clk 0:01:37]} 27. g5 {[%clk 0:00:55]}  Qg4+ {[%clk 0:01:17]} 28. Kf1 {[%clk 0:00:55]}  Rxd2 {[%clk 0:01:14]} 29. gxf6 {[%clk 0:00:28]}  Qh3+ {[%clk 0:01:12]} 30. Kg1 {[%clk 0:00:28]}  Rda2 {[%clk 0:01:07]} 31. fxe7 {[%clk 0:00:26]}  Qxh6 {[%clk 0:01:03]} 32. e5 {[%clk 0:00:27]}  dxe5 {[%clk 0:00:30]} 33. d6 {[%clk 0:00:27]}  Qh3 {[%clk 0:00:23]} 34. Nxe5 {[%clk 0:00:15]}  Qe6 {[%clk 0:00:21]} 35. Re1 {[%clk 0:00:08]}  h5 {[%clk 0:00:08]} 36. d7 {[%clk 0:00:06]}  Qxe7 {[%clk 0:00:07]} 37. Nxg6 {[%clk 0:00:03]}  Qg5+ {[%clk 0:00:05]} 38. Kh1 {[%clk 0:00:03]}  fxg6 {[%clk 0:00:03]} 39. Re8+ {[%clk 0:00:02]}  Kf7 {[%clk 0:00:02]} 40. Qf3+ {[%clk 0:00:01]}  Qf5 {[%clk 0:00:02]} 41. Qxf5+ {[%clk 0:00:01]}  gxf5 {[%clk 0:00:03]} 42. d8=Q {[%clk 0:00:02]}  Rxd8 {[%clk 0:00:03]} 43. Rxd8 {[%clk 0:00:03]}  Rxf2 {[%clk 0:00:04]} 44. Rd7+ {[%clk 0:00:03]}  Kg6 {[%clk 0:00:04]} 45. Rxb7 {[%clk 0:00:04]}  Rb2 {[%clk 0:00:04]} 46. Rb6 {[%clk 0:00:05]}  Kg5 {[%clk 0:00:04]} 47. b4 {[%clk 0:00:05]}  h4 {[%clk 0:00:03]} 48. Rxc6 {[%clk 0:00:05]}  Rxb4 {[%clk 0:00:03]} 49. Kg2 {[%clk 0:00:05]}  Rb2+ {[%clk 0:00:02]} 50. Kf3 {[%clk 0:00:05]}  Rb3+ {[%clk 0:00:02]} 51. Kf2 {[%clk 0:00:04]}  Kf4 {[%clk 0:00:03]} 52. Rc8 {[%clk 0:00:05]}  Rb2+ {[%clk 0:00:03]} 53. Kg1 {[%clk 0:00:05]}  Kg3 {[%clk 0:00:03]} 54. Rg8+ {[%clk 0:00:05]}  Kf3 {[%clk 0:00:03]} 55. Rh8 {[%clk 0:00:05]}  Kg4 {[%clk 0:00:03]} 56. Rg8+ {[%clk 0:00:05]}  Kh3 {[%clk 0:00:04]} 57. Rf8 {[%clk 0:00:04]}  Rg2+ {[%clk 0:00:03]} 58. Kf1 {[%clk 0:00:04]}  Rc2 {[%clk 0:00:03]} 59. Rxf5 {[%clk 0:00:04]}  Rxc4 {[%clk 0:00:04]} 60. Rf3+ {[%clk 0:00:04]}  Kh2 {[%clk 0:00:04]} 61. Rf2+ {[%clk 0:00:04]}  Kh1 {[%clk 0:00:03]} 62. Rf8 {[%clk 0:00:05]}  h3 {[%clk 0:00:02]} 63. Rf7 {[%clk 0:00:05]}  h2 {[%clk 0:00:02]} 64. Rf8 {[%clk 0:00:06]}  Rc1+ {[%clk 0:00:03]} 65. Kf2 {[%clk 0:00:06]}  Rc2+ {[%clk 0:00:03]} 66. Kf1 {[%clk 0:00:06]}  Ra2 {[%clk 0:00:03]} 67. Rf7 {[%clk 0:00:06]}  Ra1+ {[%clk 0:00:03]} 68. Kf2 {[%clk 0:00:06]}  Rg1 {[%clk 0:00:03]} 69. Rf8 {[%clk 0:00:06]}  Rg2+ {[%clk 0:00:04]} 70. Kf1 {[%clk 0:00:07]}  Rg1+ {[%clk 0:00:05]} 71. Kf2 {[%clk 0:00:07]}  Ra1 {[%clk 0:00:04]} 72. Rf7 {[%clk 0:00:07]}  Ra2+ {[%clk 0:00:04]} 73. Kf1 {[%clk 0:00:08]}  Ra6 {[%clk 0:00:05]} 74. Rf8 {[%clk 0:00:08]}  Rg6 {[%clk 0:00:04]} 75. Rf7 {[%clk 0:00:08]}  Rg5 {[%clk 0:00:05]} 76. Kf2 {[%clk 0:00:08]}  Rg4 {[%clk 0:00:04]} 77. Kf1 {[%clk 0:00:08]}  Rg6 {[%clk 0:00:05]} 78. Kf2 {[%clk 0:00:09]}  Rg1 {[%clk 0:00:05]} 79. Rf8 {[%clk 0:00:08]} 1/2-1/2


[Site "https://www.chess.com"]

[Event "Titled Tuesday Blitz March 29 Late 2022"]
[White "Jary, Sergey"]
[Black "Storey, Charles H"]
[WhiteFideId "14110350"]
[BlackFideId "406686"]
[WhiteElo "2260"]
[BlackElo "2263"]
[Result "1-0"]
[Round "03"]
[TimeControl "180+1"]
[Date "2022.03.30"]
[WhiteClock "0:00:12"]
[BlackClock "0:00:16"]

1. e4 {[%clk 0:02:59]}  g6 {[%clk 0:02:57]} 2. d4 {[%clk 0:02:59]}  Bg7 {[%clk 0:02:58]} 3. c4 {[%clk 0:02:59]}  c5 {[%clk 0:02:58]} 4. d5 {[%clk 0:02:58]}  e5 {[%clk 0:02:59]} 5. Nc3 {[%clk 0:02:58]}  d6 {[%clk 0:02:59]} 6. Be3 {[%clk 0:02:59]}  Nf6 {[%clk 0:02:57]} 7. h3 {[%clk 0:02:44]}  h5 {[%clk 0:02:55]} 8. Bd3 {[%clk 0:02:41]}  a6 {[%clk 0:02:48]} 9. Nge2 {[%clk 0:02:41]}  O-O {[%clk 0:02:38]} 10. Qd2 {[%clk 0:02:41]}  Re8 {[%clk 0:02:22]} 11. O-O-O {[%clk 0:02:40]}  b5 {[%clk 0:02:21]} 12. cxb5 {[%clk 0:02:35]}  axb5 {[%clk 0:02:20]} 13. Bxb5 {[%clk 0:02:35]}  Bd7 {[%clk 0:02:20]} 14. Bc4 {[%clk 0:02:30]}  Na6 {[%clk 0:02:18]} 15. f3 {[%clk 0:02:29]}  Qa5 {[%clk 0:02:15]} 16. b3 {[%clk 0:02:25]}  Nb4 {[%clk 0:02:11]} 17. a4 {[%clk 0:02:22]}  Bc8 {[%clk 0:02:05]} 18. g4 {[%clk 0:02:05]}  h4 {[%clk 0:02:03]} 19. Kb2 {[%clk 0:02:01]}  Nd7 {[%clk 0:02:02]} 20. Nb5 {[%clk 0:01:54]}  Nb6 {[%clk 0:01:59]} 21. Ra1 {[%clk 0:01:52]}  Nxc4+ {[%clk 0:01:50]} 22. bxc4 {[%clk 0:01:51]}  Bd7 {[%clk 0:01:48]} 23. Nec3 {[%clk 0:01:47]}  Ra6 {[%clk 0:01:42]} 24. Rhf1 {[%clk 0:01:37]}  f6 {[%clk 0:01:35]} 25. Kc1 {[%clk 0:01:36]}  g5 {[%clk 0:01:31]} 26. Ra3 {[%clk 0:01:33]}  Bf8 {[%clk 0:01:30]} 27. Kd1 {[%clk 0:01:32]}  Be7 {[%clk 0:01:29]} 28. Ke2 {[%clk 0:01:29]}  Rea8 {[%clk 0:01:28]} 29. Rfa1 {[%clk 0:01:23]}  Qd8 {[%clk 0:01:28]} 30. Kf1 {[%clk 0:01:17]}  Be8 {[%clk 0:01:27]} 31. Kg2 {[%clk 0:01:18]}  Kf7 {[%clk 0:01:26]} 32. Bf2 {[%clk 0:01:13]}  Kg6 {[%clk 0:01:26]} 33. Nd1 {[%clk 0:01:06]}  Qd7 {[%clk 0:01:16]} 34. Ne3 {[%clk 0:01:05]}  Bf8 {[%clk 0:01:07]} 35. Nf5 {[%clk 0:01:05]}  Kh7 {[%clk 0:01:02]} 36. Be1 {[%clk 0:01:06]}  Qd8 {[%clk 0:00:57]} 37. Qb2 {[%clk 0:01:05]}  Bg6 {[%clk 0:00:54]} 38. Bxb4 {[%clk 0:00:59]}  cxb4 {[%clk 0:00:55]} 39. Qxb4 {[%clk 0:00:59]}  Qb6 {[%clk 0:00:55]} 40. a5 {[%clk 0:00:52]}  Qd8 {[%clk 0:00:49]} 41. Ra4 {[%clk 0:00:53]}  Qd7 {[%clk 0:00:49]} 42. Qb2 {[%clk 0:00:49]}  Be7 {[%clk 0:00:48]} 43. Nc3 {[%clk 0:00:47]}  Bd8 {[%clk 0:00:47]} 44. Rb4 {[%clk 0:00:37]}  R8a7 {[%clk 0:00:46]} 45. Rb8 {[%clk 0:00:31]}  Bxf5 {[%clk 0:00:45]} 46. exf5 {[%clk 0:00:27]}  Bxa5 {[%clk 0:00:45]} 47. Ne4 {[%clk 0:00:23]}  Kg7 {[%clk 0:00:41]} 48. Rb5 {[%clk 0:00:21]}  Bc3 {[%clk 0:00:38]} 49. Rxa6 {[%clk 0:00:17]}  Bxb2 {[%clk 0:00:38]} 50. Rxa7 {[%clk 0:00:17]}  Qxa7 {[%clk 0:00:38]} 51. Rxb2 {[%clk 0:00:17]}  Qd4 {[%clk 0:00:34]} 52. Rd2 {[%clk 0:00:15]}  Qb6 {[%clk 0:00:32]} 53. c5 {[%clk 0:00:14]}  dxc5 {[%clk 0:00:31]} 54. d6 {[%clk 0:00:14]}  c4 {[%clk 0:00:28]} 55. d7 {[%clk 0:00:14]}  Qd8 {[%clk 0:00:28]} 56. Nc5 {[%clk 0:00:15]}  c3 {[%clk 0:00:24]} 57. Rc2 {[%clk 0:00:15]}  Kf7 {[%clk 0:00:23]} 58. Rxc3 {[%clk 0:00:15]}  Qa5 {[%clk 0:00:23]} 59. Rd3 {[%clk 0:00:14]}  Qa2+ {[%clk 0:00:22]} 60. Kf1 {[%clk 0:00:13]}  Qb1+ {[%clk 0:00:21]} 61. Ke2 {[%clk 0:00:13]}  Qc2+ {[%clk 0:00:21]} 62. Rd2 {[%clk 0:00:13]}  Qc4+ {[%clk 0:00:21]} 63. Kd1 {[%clk 0:00:13]}  Qf1+ {[%clk 0:00:20]} 64. Kc2 {[%clk 0:00:12]}  Qc4+ {[%clk 0:00:21]} 65. Kb2 {[%clk 0:00:11]}  Qb4+ {[%clk 0:00:19]} 66. Nb3 {[%clk 0:00:11]}  Qb6 {[%clk 0:00:13]} 67. d8=Q {[%clk 0:00:11]}  Qxd8 {[%clk 0:00:14]} 68. Rxd8 {[%clk 0:00:11]}  e4 {[%clk 0:00:14]} 69. Rd1 {[%clk 0:00:10]}  Kg7 {[%clk 0:00:15]} 70. Rf1 {[%clk 0:00:10]}  e3 {[%clk 0:00:15]} 71. Re1 {[%clk 0:00:09]}  Kf7 {[%clk 0:00:16]} 72. Rxe3 {[%clk 0:00:10]}  Kg7 {[%clk 0:00:17]} 73. Re6 {[%clk 0:00:10]}  Kh6 {[%clk 0:00:18]} 74. Nd4 {[%clk 0:00:10]}  Kg7 {[%clk 0:00:19]} 75. Nc6 {[%clk 0:00:10]}  Kf7 {[%clk 0:00:19]} 76. Nd8+ {[%clk 0:00:10]}  Kg8 {[%clk 0:00:20]} 77. Kc3 {[%clk 0:00:10]}  Kg7 {[%clk 0:00:21]} 78. Kd4 {[%clk 0:00:11]}  Kf8 {[%clk 0:00:21]} 79. Kd5 {[%clk 0:00:11]}  Kg7 {[%clk 0:00:22]} 80. Nc6 {[%clk 0:00:11]}  Kh7 {[%clk 0:00:22]} 81. Kd6 {[%clk 0:00:11]}  Kg7 {[%clk 0:00:23]} 82. Ke7 {[%clk 0:00:11]}  Kh6 {[%clk 0:00:24]} 83. Rxf6+ {[%clk 0:00:12]}  Kh7 {[%clk 0:00:25]} 84. Rg6 {[%clk 0:00:12]}  Kh8 {[%clk 0:00:25]} 85. f6 {[%clk 0:00:12]}  Kh7 {[%clk 0:00:26]} 86. f7 {[%clk 0:00:12]}  Kh8 {[%clk 0:00:27]} 87. f8=Q+ {[%clk 0:00:12]}  Kh7 {[%clk 0:00:16]} 88. Qh6# {[%clk 0:00:12]} 1-0


[Site "https://www.chess.com"]

[Event "Titled Tuesday Blitz March 29 Late 2022"]
[White "Kaganskiy, Gleb"]
[Black "Sanchez Alvares, Kelvin Antonio"]
[WhiteFideId "4132025"]
[BlackFideId "3906680"]
[WhiteElo "2165"]
[BlackElo "2193"]
[Result "0-1"]
[Round "03"]
[TimeControl "180+1"]
[Date "2022.03.30"]
[WhiteClock "0:00:51"]
[BlackClock "0:01:12"]

1. e4 {[%clk 0:02:54]}  e5 {[%clk 0:02:57]} 2. Nf3 {[%clk 0:02:51]}  Nc6 {[%clk 0:02:55]} 3. Bc4 {[%clk 0:02:48]}  Bc5 {[%clk 0:02:53]} 4. b4 {[%clk 0:02:45]}  Bxb4 {[%clk 0:02:52]} 5. c3 {[%clk 0:02:45]}  Ba5 {[%clk 0:02:53]} 6. d4 {[%clk 0:02:44]}  exd4 {[%clk 0:02:52]} 7. O-O {[%clk 0:02:42]}  Nge7 {[%clk 0:02:49]} 8. cxd4 {[%clk 0:02:27]}  d5 {[%clk 0:02:48]} 9. Bb5 {[%clk 0:02:17]}  dxe4 {[%clk 0:02:43]} 10. Ne5 {[%clk 0:02:15]}  O-O {[%clk 0:02:42]} 11. Nxc6 {[%clk 0:02:06]}  bxc6 {[%clk 0:02:41]} 12. Ba4 {[%clk 0:01:59]}  Be6 {[%clk 0:02:35]} 13. Nd2 {[%clk 0:01:52]}  Qxd4 {[%clk 0:02:33]} 14. Ba3 {[%clk 0:01:49]}  Bb4 {[%clk 0:02:13]} 15. Bxb4 {[%clk 0:01:39]}  Qxb4 {[%clk 0:02:12]} 16. Rb1 {[%clk 0:01:37]}  Qd4 {[%clk 0:02:11]} 17. Qc2 {[%clk 0:01:27]}  Bd5 {[%clk 0:02:04]} 18. Rfd1 {[%clk 0:01:22]}  e3 {[%clk 0:01:54]} 19. fxe3 {[%clk 0:01:13]}  Qxe3+ {[%clk 0:01:53]} 20. Kh1 {[%clk 0:01:14]}  Qe2 {[%clk 0:01:47]} 21. Rg1 {[%clk 0:01:09]}  Ng6 {[%clk 0:01:45]} 22. Rbe1 {[%clk 0:01:08]}  Qf2 {[%clk 0:01:36]} 23. Bxc6 {[%clk 0:01:01]}  Bxc6 {[%clk 0:01:34]} 24. Qxc6 {[%clk 0:01:00]}  Qxd2 {[%clk 0:01:32]} 25. Qxc7 {[%clk 0:00:57]}  Qxa2 {[%clk 0:01:28]} 26. Rgf1 {[%clk 0:00:54]}  a5 {[%clk 0:01:23]} 27. Ra1 {[%clk 0:00:50]}  Qd5 {[%clk 0:01:21]} 28. Rfd1 {[%clk 0:00:50]}  Qe5 {[%clk 0:01:18]} 29. Qxe5 {[%clk 0:00:46]}  Nxe5 {[%clk 0:01:18]} 30. Rd5 {[%clk 0:00:47]}  Nc6 {[%clk 0:01:15]} 31. Rdxa5 {[%clk 0:00:48]}  Rxa5 {[%clk 0:01:14]} 32. Rxa5 {[%clk 0:00:49]}  Nxa5 {[%clk 0:01:13]} 33. Kg1 {[%clk 0:00:50]}  Rc8 {[%clk 0:01:13]} 34. Kh1 {[%clk 0:00:51]}  Rc1# {[%clk 0:01:12]} 0-1


[Site "https://www.chess.com"]

[Event "Titled Tuesday Blitz March 29 Late 2022"]
[White "Kalavannan, Koby"]
[Black "Przybylski, Wojciech"]
[WhiteFideId "425753"]
[BlackFideId "1117599"]
[WhiteElo "1927"]
[BlackElo "2133"]
[Result "0-1"]
[Round "03"]
[TimeControl "180+1"]
[Date "2022.03.30"]
[WhiteClock "0:00:01"]
[BlackClock "0:00:07"]

1. d4 {[%clk 0:03:00]}  Nf6 {[%clk 0:02:58]} 2. c4 {[%clk 0:03:00]}  e6 {[%clk 0:02:58]} 3. g3 {[%clk 0:03:00]}  Bb4+ {[%clk 0:02:54]} 4. Bd2 {[%clk 0:03:00]}  Be7 {[%clk 0:02:54]} 5. Bg2 {[%clk 0:03:00]}  O-O {[%clk 0:02:54]} 6. e4 {[%clk 0:02:56]}  d5 {[%clk 0:02:51]} 7. e5 {[%clk 0:02:55]}  Ne8 {[%clk 0:02:51]} 8. cxd5 {[%clk 0:02:54]}  exd5 {[%clk 0:02:51]} 9. Nc3 {[%clk 0:02:55]}  c6 {[%clk 0:02:46]} 10. Qc2 {[%clk 0:02:13]}  Na6 {[%clk 0:02:40]} 11. a3 {[%clk 0:02:12]}  Be6 {[%clk 0:02:36]} 12. Nf3 {[%clk 0:02:12]}  h6 {[%clk 0:02:34]} 13. O-O {[%clk 0:02:10]}  Qd7 {[%clk 0:02:34]} 14. Rfd1 {[%clk 0:02:07]}  Bf5 {[%clk 0:02:10]} 15. Qb3 {[%clk 0:02:05]}  Rb8 {[%clk 0:02:09]} 16. Rac1 {[%clk 0:02:04]}  Nec7 {[%clk 0:02:06]} 17. Ne1 {[%clk 0:01:52]}  Ne6 {[%clk 0:02:02]} 18. Be3 {[%clk 0:01:49]}  f6 {[%clk 0:01:49]} 19. exf6 {[%clk 0:01:17]}  Bxf6 {[%clk 0:01:48]} 20. Qa4 {[%clk 0:00:58]}  Ng5 {[%clk 0:01:37]} 21. h4 {[%clk 0:00:49]}  Nf7 {[%clk 0:01:22]} 22. Nd3 {[%clk 0:00:49]}  Rbe8 {[%clk 0:01:17]} 23. Nc5 {[%clk 0:00:32]}  Nxc5 {[%clk 0:01:15]} 24. dxc5 {[%clk 0:00:33]}  Bg4 {[%clk 0:01:10]} 25. Rd2 {[%clk 0:00:24]}  Ne5 {[%clk 0:01:10]} 26. Kh1 {[%clk 0:00:15]}  Nf3 {[%clk 0:01:09]} 27. Rcd1 {[%clk 0:00:08]}  Be5 {[%clk 0:01:07]} 28. Ne2 {[%clk 0:00:06]}  Bb8 {[%clk 0:00:52]} 29. Rd4 {[%clk 0:00:05]}  Nxd4 {[%clk 0:00:51]} 30. Rxd4 {[%clk 0:00:04]}  Bxe2 {[%clk 0:00:50]} 31. Bxd5+ {[%clk 0:00:05]}  Kh8 {[%clk 0:00:47]} 32. Bg2 {[%clk 0:00:05]}  Qf5 {[%clk 0:00:31]} 33. Rd2 {[%clk 0:00:04]}  Bb5 {[%clk 0:00:25]} 34. Qb4 {[%clk 0:00:05]}  Bxg3 {[%clk 0:00:23]} 35. Qc3 {[%clk 0:00:01]}  Be5 {[%clk 0:00:22]} 36. Qb4 {[%clk 0:00:01]}  Bf6 {[%clk 0:00:21]} 37. Qa5 {[%clk 0:00:01]}  Bxh4 {[%clk 0:00:20]} 38. Qb4 {[%clk 0:00:02]}  Bg5 {[%clk 0:00:19]} 39. a4 {[%clk 0:00:03]}  Bxe3 {[%clk 0:00:19]} 40. fxe3 {[%clk 0:00:04]}  Bf1 {[%clk 0:00:14]} 41. Qd4 {[%clk 0:00:03]}  Bxg2+ {[%clk 0:00:12]} 42. Rxg2 {[%clk 0:00:04]}  Qh5+ {[%clk 0:00:12]} 43. Kg1 {[%clk 0:00:04]}  Rf6 {[%clk 0:00:11]} 44. Qd7 {[%clk 0:00:04]}  Qf7 {[%clk 0:00:10]} 45. Qd4 {[%clk 0:00:03]}  Rf1+ {[%clk 0:00:10]} 46. Kh2 {[%clk 0:00:04]}  Rf5 {[%clk 0:00:09]} 47. Kg1 {[%clk 0:00:02]}  Rf8 {[%clk 0:00:10]} 48. Qg4 {[%clk 0:00:01]}  Rf6 {[%clk 0:00:09]} 49. Kh2 {[%clk 0:00:02]}  Rg8 {[%clk 0:00:07]} 50. e4 {[%clk 0:00:02]}  Re6 {[%clk 0:00:06]} 51. Kg3 {[%clk 0:00:01]}  Re5 {[%clk 0:00:07]} 52. Rf2 {[%clk 0:00:01]}  Qe7 {[%clk 0:00:07]} 0-1


[Site "https://www.chess.com"]

[Event "Titled Tuesday Blitz March 29 Late 2022"]
[White "Kosteniuk, Alexandra"]
[Black "Martinez Alcantara, Jose Eduardo"]
[WhiteFideId "4128125"]
[BlackFideId "3805662"]
[WhiteElo "2469"]
[BlackElo "2690"]
[Result "0-1"]
[Round "03"]
[TimeControl "180+1"]
[Date "2022.03.29"]
[WhiteClock "0:00:05"]
[BlackClock "0:00:07"]

1. e4 {[%clk 0:03:00]}  c5 {[%clk 0:02:58]} 2. c3 {[%clk 0:03:01]}  d6 {[%clk 0:02:59]} 3. d4 {[%clk 0:03:00]}  Nf6 {[%clk 0:03:00]} 4. Bd3 {[%clk 0:03:00]}  e5 {[%clk 0:03:00]} 5. Nf3 {[%clk 0:02:59]}  Qc7 {[%clk 0:03:00]} 6. dxe5 {[%clk 0:02:57]}  dxe5 {[%clk 0:03:00]} 7. Nbd2 {[%clk 0:02:56]}  Nc6 {[%clk 0:02:58]} 8. O-O {[%clk 0:02:55]}  Be7 {[%clk 0:02:57]} 9. Qe2 {[%clk 0:02:54]}  O-O {[%clk 0:02:57]} 10. Nc4 {[%clk 0:02:54]}  h6 {[%clk 0:02:53]} 11. a4 {[%clk 0:02:54]}  Be6 {[%clk 0:02:53]} 12. Nh4 {[%clk 0:02:43]}  Na5 {[%clk 0:02:36]} 13. Nxa5 {[%clk 0:02:30]}  Qxa5 {[%clk 0:02:37]} 14. f4 {[%clk 0:02:09]}  c4 {[%clk 0:02:35]} 15. Bc2 {[%clk 0:02:09]}  exf4 {[%clk 0:02:30]} 16. e5 {[%clk 0:02:09]}  Nd5 {[%clk 0:01:37]} 17. Qe4 {[%clk 0:01:44]}  Qb6+ {[%clk 0:01:37]} 18. Kh1 {[%clk 0:01:41]}  f5 {[%clk 0:01:37]} 19. exf6 {[%clk 0:01:41]}  Nxf6 {[%clk 0:01:38]} 20. Qe1 {[%clk 0:01:31]}  g5 {[%clk 0:01:10]} 21. Ng6 {[%clk 0:01:26]}  Rfe8 {[%clk 0:01:09]} 22. a5 {[%clk 0:01:18]}  Qd6 {[%clk 0:01:09]} 23. Nxf4 {[%clk 0:01:13]}  Bf7 {[%clk 0:00:52]} 24. Ne2 {[%clk 0:01:08]}  Bf8 {[%clk 0:00:31]} 25. Qf2 {[%clk 0:01:06]}  Bd5 {[%clk 0:00:26]} 26. Ng3 {[%clk 0:00:59]}  Bg7 {[%clk 0:00:26]} 27. Nf5 {[%clk 0:00:50]}  Ng4 {[%clk 0:00:23]} 28. Nxd6 {[%clk 0:00:48]}  Nxf2+ {[%clk 0:00:23]} 29. Kg1 {[%clk 0:00:49]}  Red8 {[%clk 0:00:17]} 30. Nf5 {[%clk 0:00:42]}  Nd3 {[%clk 0:00:13]} 31. Ne7+ {[%clk 0:00:32]}  Kh8 {[%clk 0:00:10]} 32. Nxd5 {[%clk 0:00:20]}  Rxd5 {[%clk 0:00:11]} 33. Be3 {[%clk 0:00:15]}  Nxb2 {[%clk 0:00:08]} 34. Rab1 {[%clk 0:00:14]}  Bxc3 {[%clk 0:00:05]} 35. a6 {[%clk 0:00:15]}  Re5 {[%clk 0:00:03]} 36. axb7 {[%clk 0:00:15]}  Rb8 {[%clk 0:00:04]} 37. Bxa7 {[%clk 0:00:13]}  Rxb7 {[%clk 0:00:04]} 38. Bf2 {[%clk 0:00:13]}  Rbe7 {[%clk 0:00:05]} 39. Bg3 {[%clk 0:00:13]}  Re2 {[%clk 0:00:04]} 40. Bg6 {[%clk 0:00:12]}  Kg7 {[%clk 0:00:05]} 41. Bh5 {[%clk 0:00:11]}  Nd3 {[%clk 0:00:05]} 42. Bxe2 {[%clk 0:00:10]}  Rxe2 {[%clk 0:00:05]} 43. Rb7+ {[%clk 0:00:11]}  Kg6 {[%clk 0:00:05]} 44. Rb6+ {[%clk 0:00:11]}  Kh5 {[%clk 0:00:05]} 45. h3 {[%clk 0:00:10]}  Bd4+ {[%clk 0:00:06]} 46. Kh2 {[%clk 0:00:07]}  Bxb6 {[%clk 0:00:06]} 47. Bb8 {[%clk 0:00:07]}  Kg6 {[%clk 0:00:05]} 48. Bd6 {[%clk 0:00:06]}  Bd4 {[%clk 0:00:06]} 49. Rb1 {[%clk 0:00:05]}  Be5+ {[%clk 0:00:06]} 50. Bxe5 {[%clk 0:00:05]}  Nxe5 {[%clk 0:00:07]} 0-1


[Site "https://www.chess.com"]

[Event "Titled Tuesday Blitz March 29 Late 2022"]
[White "Koutlas, Nikolaos"]
[Black "Riff, Vincent"]
[WhiteFideId "25827138"]
[BlackFideId "617776"]
[WhiteElo "1610"]
[BlackElo "2377"]
[Result "0-1"]
[Round "03"]
[TimeControl "180+1"]
[Date "2022.03.30"]
[WhiteClock "0:00:19"]
[BlackClock "0:01:31"]

1. e4 {[%clk 0:02:59]}  c5 {[%clk 0:02:37]} 2. Nf3 {[%clk 0:02:58]}  Nc6 {[%clk 0:02:37]} 3. d4 {[%clk 0:02:58]}  cxd4 {[%clk 0:02:38]} 4. Nxd4 {[%clk 0:02:58]}  e5 {[%clk 0:02:39]} 5. Nb5 {[%clk 0:02:57]}  d6 {[%clk 0:02:39]} 6. N1c3 {[%clk 0:02:57]}  a6 {[%clk 0:02:39]} 7. Na3 {[%clk 0:02:57]}  b5 {[%clk 0:02:40]} 8. Nd5 {[%clk 0:02:57]}  Nge7 {[%clk 0:02:40]} 9. c4 {[%clk 0:02:57]}  Nd4 {[%clk 0:02:41]} 10. Bd3 {[%clk 0:02:52]}  Nxd5 {[%clk 0:02:40]} 11. exd5 {[%clk 0:02:52]}  Be7 {[%clk 0:02:40]} 12. O-O {[%clk 0:02:52]}  O-O {[%clk 0:02:41]} 13. cxb5 {[%clk 0:02:51]}  f5 {[%clk 0:02:41]} 14. f4 {[%clk 0:02:41]}  e4 {[%clk 0:02:33]} 15. Bxe4 {[%clk 0:02:37]}  Nxb5 {[%clk 0:02:33]} 16. Nxb5 {[%clk 0:02:32]}  fxe4 {[%clk 0:02:25]} 17. Nd4 {[%clk 0:02:30]}  Bf6 {[%clk 0:02:25]} 18. Kh1 {[%clk 0:02:26]}  Bxd4 {[%clk 0:02:15]} 19. Qxd4 {[%clk 0:02:25]}  Re8 {[%clk 0:02:11]} 20. Bd2 {[%clk 0:02:17]}  Qf6 {[%clk 0:02:10]} 21. Qa4 {[%clk 0:01:37]}  Bb7 {[%clk 0:02:04]} 22. Bc3 {[%clk 0:01:36]}  Qf5 {[%clk 0:01:58]} 23. Rad1 {[%clk 0:01:22]}  e3 {[%clk 0:01:56]} 24. Qd4 {[%clk 0:01:13]}  Re7 {[%clk 0:01:52]} 25. Rde1 {[%clk 0:01:10]}  Qxd5 {[%clk 0:01:42]} 26. Qxd5+ {[%clk 0:00:40]}  Bxd5 {[%clk 0:01:43]} 27. f5 {[%clk 0:00:36]}  Rf8 {[%clk 0:01:33]} 28. Bd4 {[%clk 0:00:30]}  e2 {[%clk 0:01:32]} 29. Rf2 {[%clk 0:00:28]}  Bc4 {[%clk 0:01:32]} 30. b3 {[%clk 0:00:22]}  Bd3 {[%clk 0:01:32]} 31. f6 {[%clk 0:00:20]}  gxf6 {[%clk 0:01:32]} 32. Rxf6 {[%clk 0:00:21]}  Rxf6 {[%clk 0:01:32]} 33. Bxf6 {[%clk 0:00:19]}  Rf7 {[%clk 0:01:31]} 0-1


[Site "https://www.chess.com"]

[Event "Titled Tuesday Blitz March 29 Late 2022"]
[White "Kozina, Anastasia"]
[Black "Hnydiuk, Aleksander"]
[WhiteFideId "24174017"]
[BlackFideId "1109057"]
[WhiteElo "1993"]
[BlackElo "2374"]
[Result "0-1"]
[Round "03"]
[TimeControl "180+1"]
[Date "2022.03.30"]
[WhiteClock "0:00:16"]
[BlackClock "0:00:29"]

1. e4 {[%clk 0:03:00]}  Nf6 {[%clk 0:02:59]} 2. e5 {[%clk 0:03:00]}  Nd5 {[%clk 0:02:59]} 3. d4 {[%clk 0:03:01]}  d6 {[%clk 0:03:00]} 4. Nf3 {[%clk 0:03:01]}  dxe5 {[%clk 0:03:00]} 5. dxe5 {[%clk 0:02:59]}  Bg4 {[%clk 0:02:52]} 6. Be2 {[%clk 0:02:57]}  Nc6 {[%clk 0:02:47]} 7. O-O {[%clk 0:02:55]}  e6 {[%clk 0:02:46]} 8. Re1 {[%clk 0:02:51]}  Bc5 {[%clk 0:02:30]} 9. a3 {[%clk 0:02:42]}  a5 {[%clk 0:02:23]} 10. b3 {[%clk 0:02:21]}  O-O {[%clk 0:02:10]} 11. Bb2 {[%clk 0:02:21]}  Qe7 {[%clk 0:02:03]} 12. Nbd2 {[%clk 0:02:19]}  Rad8 {[%clk 0:02:02]} 13. Bd3 {[%clk 0:02:00]}  Nf4 {[%clk 0:01:56]} 14. Ne4 {[%clk 0:01:58]}  Bb6 {[%clk 0:01:50]} 15. Qd2 {[%clk 0:01:48]}  Nxd3 {[%clk 0:01:47]} 16. cxd3 {[%clk 0:01:48]}  Bxf3 {[%clk 0:01:46]} 17. gxf3 {[%clk 0:01:49]}  Qh4 {[%clk 0:01:39]} 18. Ng3 {[%clk 0:01:12]}  Rd5 {[%clk 0:01:16]} 19. Re4 {[%clk 0:01:07]}  Qh3 {[%clk 0:01:16]} 20. Rg4 {[%clk 0:00:55]}  h6 {[%clk 0:00:59]} 21. Ne4 {[%clk 0:00:37]}  Kh8 {[%clk 0:00:53]} 22. Rg3 {[%clk 0:00:32]}  Qf5 {[%clk 0:00:50]} 23. Nf6 {[%clk 0:00:27]}  Rxd3 {[%clk 0:00:44]} 24. Qc1 {[%clk 0:00:19]}  Rxf3 {[%clk 0:00:37]} 25. Rxf3 {[%clk 0:00:16]}  Qxf3 {[%clk 0:00:38]} 26. Qc2 {[%clk 0:00:15]}  gxf6 {[%clk 0:00:35]} 27. exf6 {[%clk 0:00:16]}  Rg8+ {[%clk 0:00:33]} 28. Kf1 {[%clk 0:00:16]}  Qg2+ {[%clk 0:00:30]} 29. Ke1 {[%clk 0:00:16]}  Qg1+ {[%clk 0:00:29]} 30. Ke2 {[%clk 0:00:16]}  Qxf2+ {[%clk 0:00:29]} 0-1


[Site "https://www.chess.com"]